[Event "Titled Tuesday Blitz July 18 Early 2023"]
[White "Girya, Olga"]
[Black "KorolDimitriy75"]
[WhiteFideId "4195752"]
[WhiteElo "2518"]
[BlackElo "2407"]
[Result "0-1"]
[Round "8"]
[TimeControl "180+2"]
[Date "2023.07.18"]
[WhiteClock "0:00:00"]
[BlackClock "0:00:15"]
[Board "112"]

1. d4 {[%clk 0:03:00]}  Nf6 {[%clk 0:02:58]} 2. Nf3 {[%clk 0:03:01]}  g6 {[%clk 0:02:57]} 3. Bg5 {[%clk 0:03:00]}  Bg7 {[%clk 0:02:56]} 4. Nbd2 {[%clk 0:03:01]}  c5 {[%clk 0:02:56]} 5. Bxf6 {[%clk 0:02:59]}  Bxf6 {[%clk 0:02:57]} 6. Ne4 {[%clk 0:02:59]}  Bxd4 {[%clk 0:02:57]} 7. Nxd4 {[%clk 0:02:59]}  cxd4 {[%clk 0:02:58]} 8. Qxd4 {[%clk 0:03:00]}  O-O {[%clk 0:02:58]} 9. O-O-O {[%clk 0:02:50]}  Nc6 {[%clk 0:02:57]} 10. Qd2 {[%clk 0:02:50]}  Qa5 {[%clk 0:02:53]} 11. Qxa5 {[%clk 0:02:48]}  Nxa5 {[%clk 0:02:52]} 12. h4 {[%clk 0:02:47]}  h5 {[%clk 0:02:44]} 13. e3 {[%clk 0:02:38]}  d6 {[%clk 0:02:37]} 14. Be2 {[%clk 0:02:38]}  Kg7 {[%clk 0:02:32]} 15. Nc3 {[%clk 0:02:20]}  Be6 {[%clk 0:01:51]} 16. Nd5 {[%clk 0:02:15]}  Nc6 {[%clk 0:01:39]} 17. Nf4 {[%clk 0:02:08]}  Bd7 {[%clk 0:01:27]} 18. Bf3 {[%clk 0:01:56]}  Rfc8 {[%clk 0:01:20]} 19. c3 {[%clk 0:01:52]}  Rab8 {[%clk 0:01:20]} 20. a3 {[%clk 0:01:03]}  Ne5 {[%clk 0:01:17]} 21. Be2 {[%clk 0:00:58]}  b5 {[%clk 0:01:11]} 22. Nd5 {[%clk 0:00:58]}  e6 {[%clk 0:01:06]} 23. Nf4 {[%clk 0:00:45]}  d5 {[%clk 0:01:05]} 24. f3 {[%clk 0:00:31]}  a5 {[%clk 0:01:01]} 25. Kb1 {[%clk 0:00:21]}  b4 {[%clk 0:01:01]} 26. axb4 {[%clk 0:00:20]}  axb4 {[%clk 0:01:02]} 27. cxb4 {[%clk 0:00:18]}  Rxb4 {[%clk 0:01:03]} 28. Nd3 {[%clk 0:00:17]}  Nxd3 {[%clk 0:01:01]} 29. Bxd3 {[%clk 0:00:17]}  Rcb8 {[%clk 0:00:58]} 30. Rd2 {[%clk 0:00:17]}  e5 {[%clk 0:00:53]} 31. g3 {[%clk 0:00:13]}  Be6 {[%clk 0:00:52]} 32. Rc1 {[%clk 0:00:12]}  R8b7 {[%clk 0:00:51]} 33. Rc5 {[%clk 0:00:12]}  Kf8 {[%clk 0:00:50]} 34. Be2 {[%clk 0:00:12]}  Ke7 {[%clk 0:00:49]} 35. f4 {[%clk 0:00:13]}  Kd6 {[%clk 0:00:48]} 36. Rc3 {[%clk 0:00:12]}  Ra7 {[%clk 0:00:40]} 37. e4 {[%clk 0:00:10]}  Rxe4 {[%clk 0:00:39]} 38. fxe5+ {[%clk 0:00:09]}  Kxe5 {[%clk 0:00:40]} 39. Bf3 {[%clk 0:00:06]}  Rb4 {[%clk 0:00:38]} 40. Re2+ {[%clk 0:00:05]}  Kd6 {[%clk 0:00:38]} 41. Kc2 {[%clk 0:00:03]}  Bf5+ {[%clk 0:00:37]} 42. Kd2 {[%clk 0:00:01]}  Rxb2+ {[%clk 0:00:37]} 43. Ke3 {[%clk 0:00:01]}  Rxe2+ {[%clk 0:00:36]} 44. Bxe2 {[%clk 0:00:02]}  Re7+ {[%clk 0:00:36]} 45. Kf2 {[%clk 0:00:02]}  d4 {[%clk 0:00:35]} 46. Ra3 {[%clk 0:00:02]}  Ke5 {[%clk 0:00:33]} 47. Ra5+ {[%clk 0:00:02]}  Kf6 {[%clk 0:00:33]} 48. Ra6+ {[%clk 0:00:02]}  Re6 {[%clk 0:00:33]} 49. Ra5 {[%clk 0:00:01]}  Re7 {[%clk 0:00:30]} 50. Bf3 {[%clk 0:00:01]}  Re3 {[%clk 0:00:28]} 51. Ra6+ {[%clk 0:00:01]}  Kg7 {[%clk 0:00:27]} 52. Ra7 {[%clk 0:00:01]}  Be6 {[%clk 0:00:25]} 53. Ra6 {[%clk 0:00:01]}  Rb3 {[%clk 0:00:23]} 54. Rd6 {[%clk 0:00:01]}  Rb2+ {[%clk 0:00:21]} 55. Kg1 {[%clk 0:00:02]}  Rb4 {[%clk 0:00:22]} 56. Kf2 {[%clk 0:00:01]}  Kf6 {[%clk 0:00:22]} 57. Bg2 {[%clk 0:00:01]}  Ke5 {[%clk 0:00:22]} 58. Rd8 {[%clk 0:00:02]}  Rb2+ {[%clk 0:00:22]} 59. Kg1 {[%clk 0:00:02]}  Bf5 {[%clk 0:00:21]} 60. Bf3 {[%clk 0:00:02]}  d3 {[%clk 0:00:21]} 61. Re8+ {[%clk 0:00:02]}  Kd4 {[%clk 0:00:21]} 62. Rd8+ {[%clk 0:00:02]}  Ke3 {[%clk 0:00:21]} 63. Bg2 {[%clk 0:00:02]}  d2 {[%clk 0:00:21]} 64. Re8+ {[%clk 0:00:03]}  Kd4 {[%clk 0:00:19]} 65. Bf3 {[%clk 0:00:03]}  Bg4 {[%clk 0:00:16]} 66. Bxg4 {[%clk 0:00:03]}  hxg4 {[%clk 0:00:17]} 67. Rd8+ {[%clk 0:00:03]}  Ke3 {[%clk 0:00:17]} 68. Re8+ {[%clk 0:00:02]}  Kf3 {[%clk 0:00:17]} 69. Rd8 {[%clk 0:00:02]}  Rb1+ {[%clk 0:00:16]} 70. Kh2 {[%clk 0:00:02]}  d1=Q {[%clk 0:00:15]} 71. Rxd1 {[%clk 0:00:00]}  Rxd1 {[%clk 0:00:15]} 0-1


[Site "https://www.chess.com"]

[Event "Titled Tuesday Blitz July 18 Early 2023"]
[White "Horak, Martin"]
[Black "Mejia, Cherry Ann"]
[WhiteFideId "367095"]
[BlackFideId "5206880"]
[WhiteElo "2503"]
[BlackElo "2372"]
[Result "0-1"]
[Round "8"]
[TimeControl "180+2"]
[Date "2023.07.18"]
[WhiteClock "0:00:00"]
[BlackClock "0:00:13"]
[Board "114"]

1. e4 {[%clk 0:03:00]}  c5 {[%clk 0:03:00]} 2. Nf3 {[%clk 0:03:00]}  Nc6 {[%clk 0:02:59]} 3. d4 {[%clk 0:03:00]}  cxd4 {[%clk 0:03:00]} 4. Nxd4 {[%clk 0:03:01]}  Qb6 {[%clk 0:03:00]} 5. Nb3 {[%clk 0:02:58]}  Nf6 {[%clk 0:02:59]} 6. Nc3 {[%clk 0:02:58]}  e6 {[%clk 0:02:59]} 7. Bd3 {[%clk 0:02:58]}  a6 {[%clk 0:02:59]} 8. Qe2 {[%clk 0:02:58]}  d6 {[%clk 0:02:57]} 9. Be3 {[%clk 0:02:57]}  Qc7 {[%clk 0:02:57]} 10. O-O {[%clk 0:02:57]}  Be7 {[%clk 0:02:57]} 11. f4 {[%clk 0:02:57]}  O-O {[%clk 0:02:57]} 12. Rae1 {[%clk 0:02:57]}  b5 {[%clk 0:02:56]} 13. Rf3 {[%clk 0:02:56]}  Re8 {[%clk 0:02:51]} 14. Rh3 {[%clk 0:02:56]}  e5 {[%clk 0:02:36]} 15. f5 {[%clk 0:02:33]}  Nb4 {[%clk 0:02:25]} 16. Bg5 {[%clk 0:02:19]}  Bb7 {[%clk 0:02:03]} 17. a3 {[%clk 0:01:25]}  Nxd3 {[%clk 0:02:00]} 18. cxd3 {[%clk 0:01:26]}  Rad8 {[%clk 0:01:51]} 19. Bxf6 {[%clk 0:01:19]}  Bxf6 {[%clk 0:01:51]} 20. Qh5 {[%clk 0:01:20]}  h6 {[%clk 0:01:48]} 21. Ree3 {[%clk 0:01:21]}  d5 {[%clk 0:01:34]} 22. Reg3 {[%clk 0:01:18]}  Kf8 {[%clk 0:01:34]} 23. Nd2 {[%clk 0:01:00]}  d4 {[%clk 0:01:24]} 24. Ne2 {[%clk 0:00:51]}  Qc2 {[%clk 0:01:21]} 25. Nf1 {[%clk 0:00:51]}  Bxe4 {[%clk 0:01:14]} 26. dxe4 {[%clk 0:00:45]}  d3 {[%clk 0:01:15]} 27. Nc3 {[%clk 0:00:34]}  d2 {[%clk 0:01:15]} 28. Ne3 {[%clk 0:00:23]}  Qxb2 {[%clk 0:00:54]} 29. Ned1 {[%clk 0:00:21]}  Qxa3 {[%clk 0:00:46]} 30. Nd5 {[%clk 0:00:20]}  Qc5+ {[%clk 0:00:46]} 31. Kh1 {[%clk 0:00:17]}  Rd6 {[%clk 0:00:20]} 32. Nxf6 {[%clk 0:00:11]}  Rxf6 {[%clk 0:00:20]} 33. Qg4 {[%clk 0:00:11]}  Ke7 {[%clk 0:00:17]} 34. Qxg7 {[%clk 0:00:11]}  Qc1 {[%clk 0:00:16]} 35. Qg4 {[%clk 0:00:12]}  Rc8 {[%clk 0:00:12]} 36. Qe2 {[%clk 0:00:05]}  Qxd1+ {[%clk 0:00:12]} 37. Qxd1 {[%clk 0:00:00]}  Rc1 {[%clk 0:00:13]} 0-1


[Site "https://www.chess.com"]

[Event "Titled Tuesday Blitz July 18 Early 2023"]
[White "Mathieu, Phileas"]
[Black "Alahakoon, Isuru"]
[WhiteFideId "36048410"]
[BlackFideId "9900993"]
[WhiteElo "2502"]
[BlackElo "2367"]
[Result "1-0"]
[Round "8"]
[TimeControl "180+2"]
[Date "2023.07.18"]
[WhiteClock "0:01:36"]
[BlackClock "0:00:00"]
[Board "115"]

1. c4 {[%clk 0:03:00]}  e5 {[%clk 0:02:54]} 2. Nc3 {[%clk 0:03:00]}  Nc6 {[%clk 0:02:52]} 3. Nf3 {[%clk 0:02:58]}  Bc5 {[%clk 0:02:51]} 4. e3 {[%clk 0:02:51]}  d6 {[%clk 0:02:51]} 5. a3 {[%clk 0:02:52]}  a6 {[%clk 0:02:49]} 6. d4 {[%clk 0:02:51]}  exd4 {[%clk 0:02:47]} 7. exd4 {[%clk 0:02:52]}  Ba7 {[%clk 0:02:46]} 8. Be2 {[%clk 0:02:53]}  Nf6 {[%clk 0:02:43]} 9. h3 {[%clk 0:02:53]}  h6 {[%clk 0:02:42]} 10. O-O {[%clk 0:02:54]}  O-O {[%clk 0:02:38]} 11. Be3 {[%clk 0:02:52]}  Bf5 {[%clk 0:02:35]} 12. Qd2 {[%clk 0:02:51]}  Re8 {[%clk 0:02:34]} 13. Bd3 {[%clk 0:02:51]}  Bxd3 {[%clk 0:02:32]} 14. Qxd3 {[%clk 0:02:52]}  Qd7 {[%clk 0:02:29]} 15. Rfe1 {[%clk 0:02:49]}  Ne7 {[%clk 0:02:27]} 16. b4 {[%clk 0:02:39]}  Qf5 {[%clk 0:02:26]} 17. Qxf5 {[%clk 0:02:37]}  Nxf5 {[%clk 0:02:25]} 18. c5 {[%clk 0:02:38]}  Nxe3 {[%clk 0:02:19]} 19. Rxe3 {[%clk 0:02:38]}  Rxe3 {[%clk 0:02:17]} 20. fxe3 {[%clk 0:02:39]}  Re8 {[%clk 0:02:14]} 21. Kf2 {[%clk 0:02:38]}  d5 {[%clk 0:02:02]} 22. c6 {[%clk 0:02:32]}  bxc6 {[%clk 0:01:57]} 23. Nd2 {[%clk 0:02:27]}  Bb6 {[%clk 0:01:50]} 24. Rc1 {[%clk 0:02:15]}  a5 {[%clk 0:01:48]} 25. b5 {[%clk 0:02:15]}  c5 {[%clk 0:01:43]} 26. dxc5 {[%clk 0:02:12]}  Bxc5 {[%clk 0:01:44]} 27. Nxd5 {[%clk 0:02:12]}  Bxa3 {[%clk 0:01:36]} 28. Nxf6+ {[%clk 0:02:11]}  gxf6 {[%clk 0:01:34]} 29. Rxc7 {[%clk 0:02:12]}  Rb8 {[%clk 0:01:28]} 30. Nc4 {[%clk 0:02:13]}  Bb4 {[%clk 0:01:19]} 31. b6 {[%clk 0:02:13]}  a4 {[%clk 0:01:10]} 32. Ra7 {[%clk 0:02:11]}  a3 {[%clk 0:01:07]} 33. Ke2 {[%clk 0:02:10]}  Bc5 {[%clk 0:01:03]} 34. Ra5 {[%clk 0:01:57]}  Bxb6 {[%clk 0:00:58]} 35. Rxa3 {[%clk 0:01:56]}  Bc5 {[%clk 0:00:56]} 36. Ra5 {[%clk 0:01:56]}  Be7 {[%clk 0:00:48]} 37. Kf3 {[%clk 0:01:56]}  Rb4 {[%clk 0:00:45]} 38. Nd2 {[%clk 0:01:55]}  Rb2 {[%clk 0:00:32]} 39. Ne4 {[%clk 0:01:54]}  Kg7 {[%clk 0:00:31]} 40. Ng3 {[%clk 0:01:53]}  Kg6 {[%clk 0:00:29]} 41. h4 {[%clk 0:01:53]}  Bb4 {[%clk 0:00:17]} 42. h5+ {[%clk 0:01:52]}  Kg7 {[%clk 0:00:16]} 43. Nf5+ {[%clk 0:01:51]}  Kh7 {[%clk 0:00:15]} 44. Ra7 {[%clk 0:01:52]}  Bc5 {[%clk 0:00:10]} 45. Rxf7+ {[%clk 0:01:47]}  Kg8 {[%clk 0:00:10]} 46. Nxh6+ {[%clk 0:01:47]}  Kh8 {[%clk 0:00:09]} 47. Nf5 {[%clk 0:01:42]}  Rb5 {[%clk 0:00:04]} 48. g4 {[%clk 0:01:36]}  Kg8 {[%clk 0:00:00]} 49. Rxf6 {[%clk 0:01:36]} 1-0


[Site "https://www.chess.com"]

[Event "Titled Tuesday Blitz July 18 Early 2023"]
[White "K2JW"]
[Black "Gulamali, Kazim"]
[BlackFideId "2024764"]
[WhiteElo "2366"]
[BlackElo "2494"]
[Result "0-1"]
[Round "8"]
[TimeControl "180+2"]
[Date "2023.07.18"]
[WhiteClock "0:00:14"]
[BlackClock "0:00:58"]
[Board "116"]

1. e4 {[%clk 0:02:27]}  e5 {[%clk 0:02:58]} 2. Nf3 {[%clk 0:02:27]}  Nc6 {[%clk 0:02:59]} 3. Bc4 {[%clk 0:02:27]}  Nf6 {[%clk 0:02:58]} 4. d3 {[%clk 0:02:28]}  Be7 {[%clk 0:02:56]} 5. O-O {[%clk 0:02:27]}  d6 {[%clk 0:02:56]} 6. Re1 {[%clk 0:02:28]}  Na5 {[%clk 0:02:47]} 7. Bb5+ {[%clk 0:02:19]}  c6 {[%clk 0:02:47]} 8. Ba4 {[%clk 0:02:20]}  b5 {[%clk 0:02:47]} 9. Bb3 {[%clk 0:02:20]}  O-O {[%clk 0:02:44]} 10. d4 {[%clk 0:02:12]}  Qc7 {[%clk 0:02:38]} 11. c3 {[%clk 0:01:56]}  Nxb3 {[%clk 0:02:37]} 12. axb3 {[%clk 0:01:56]}  Re8 {[%clk 0:02:24]} 13. h3 {[%clk 0:01:55]}  h6 {[%clk 0:02:20]} 14. c4 {[%clk 0:01:48]}  b4 {[%clk 0:01:56]} 15. Nbd2 {[%clk 0:01:18]}  exd4 {[%clk 0:01:36]} 16. Nxd4 {[%clk 0:01:17]}  Bf8 {[%clk 0:01:34]} 17. Qc2 {[%clk 0:01:03]}  Bb7 {[%clk 0:01:33]} 18. Nf1 {[%clk 0:00:44]}  c5 {[%clk 0:01:28]} 19. Ne2 {[%clk 0:00:27]}  Bxe4 {[%clk 0:01:21]} 20. Qd1 {[%clk 0:00:27]}  Bb7 {[%clk 0:00:59]} 21. Bf4 {[%clk 0:00:21]}  Qc6 {[%clk 0:00:59]} 22. Ne3 {[%clk 0:00:14]}  Rxe3 {[%clk 0:00:58]} 0-1


[Site "https://www.chess.com"]

[Event "Titled Tuesday Blitz July 18 Early 2023"]
[White "Wernberg, Hugo"]
[Black "Mmukka"]
[WhiteFideId "1737511"]
[WhiteElo "2363"]
[BlackElo "2487"]
[Result "0-1"]
[Round "8"]
[TimeControl "180+2"]
[Date "2023.07.18"]
[WhiteClock "0:00:04"]
[BlackClock "0:00:26"]
[Board "119"]

1. d4 {[%clk 0:03:00]}  d5 {[%clk 0:02:56]} 2. c4 {[%clk 0:03:01]}  dxc4 {[%clk 0:02:56]} 3. Nf3 {[%clk 0:03:01]}  Nf6 {[%clk 0:02:56]} 4. e3 {[%clk 0:03:01]}  e6 {[%clk 0:02:56]} 5. Bxc4 {[%clk 0:03:01]}  c5 {[%clk 0:02:57]} 6. O-O {[%clk 0:02:59]}  a6 {[%clk 0:02:56]} 7. dxc5 {[%clk 0:03:00]}  Bxc5 {[%clk 0:02:55]} 8. Qxd8+ {[%clk 0:02:52]}  Kxd8 {[%clk 0:02:56]} 9. Be2 {[%clk 0:02:52]}  Ke7 {[%clk 0:02:49]} 10. Nc3 {[%clk 0:02:52]}  Nbd7 {[%clk 0:02:38]} 11. Nd2 {[%clk 0:02:37]}  b5 {[%clk 0:02:26]} 12. Bf3 {[%clk 0:02:28]}  Rb8 {[%clk 0:02:18]} 13. Nde4 {[%clk 0:02:19]}  Bb6 {[%clk 0:02:12]} 14. b3 {[%clk 0:02:03]}  Bb7 {[%clk 0:02:08]} 15. Ba3+ {[%clk 0:02:00]}  Kd8 {[%clk 0:01:57]} 16. Nd6 {[%clk 0:01:53]}  Bxf3 {[%clk 0:01:56]} 17. Nxf7+ {[%clk 0:01:52]}  Kc7 {[%clk 0:01:46]} 18. gxf3 {[%clk 0:01:30]}  Rhf8 {[%clk 0:01:29]} 19. Bxf8 {[%clk 0:01:05]}  Rxf8 {[%clk 0:01:30]} 20. Ng5 {[%clk 0:01:05]}  Re8 {[%clk 0:01:28]} 21. Rac1 {[%clk 0:01:02]}  Kb7 {[%clk 0:01:20]} 22. Nce4 {[%clk 0:00:53]}  Bc7 {[%clk 0:01:14]} 23. f4 {[%clk 0:00:31]}  h6 {[%clk 0:01:08]} 24. Nxf6 {[%clk 0:00:30]}  gxf6 {[%clk 0:01:07]} 25. Ne4 {[%clk 0:00:29]}  Rg8+ {[%clk 0:01:04]} 26. Kh1 {[%clk 0:00:29]}  f5 {[%clk 0:01:03]} 27. Rfd1 {[%clk 0:00:23]}  Rg7 {[%clk 0:00:53]} 28. Rxd7 {[%clk 0:00:17]}  Rxd7 {[%clk 0:00:53]} 29. Nc5+ {[%clk 0:00:18]}  Kc6 {[%clk 0:00:50]} 30. Nxd7+ {[%clk 0:00:18]}  Kxd7 {[%clk 0:00:51]} 31. Rg1 {[%clk 0:00:17]}  a5 {[%clk 0:00:49]} 32. Rg6 {[%clk 0:00:16]}  a4 {[%clk 0:00:47]} 33. Rxh6 {[%clk 0:00:16]}  a3 {[%clk 0:00:45]} 34. Rh7+ {[%clk 0:00:14]}  Kd6 {[%clk 0:00:44]} 35. Rxc7 {[%clk 0:00:14]}  Kxc7 {[%clk 0:00:45]} 36. Kg2 {[%clk 0:00:14]}  Kc6 {[%clk 0:00:45]} 37. Kf3 {[%clk 0:00:15]}  Kc5 {[%clk 0:00:45]} 38. h4 {[%clk 0:00:15]}  Kb4 {[%clk 0:00:45]} 39. h5 {[%clk 0:00:15]}  Kc3 {[%clk 0:00:46]} 40. h6 {[%clk 0:00:16]}  Kb2 {[%clk 0:00:47]} 41. h7 {[%clk 0:00:17]}  Kxa2 {[%clk 0:00:48]} 42. h8=Q {[%clk 0:00:17]}  Kb1 {[%clk 0:00:46]} 43. Qh1+ {[%clk 0:00:11]}  Kb2 {[%clk 0:00:45]} 44. Qd1 {[%clk 0:00:09]}  a2 {[%clk 0:00:45]} 45. Qd2+ {[%clk 0:00:09]}  Kb1 {[%clk 0:00:45]} 46. Qd3+ {[%clk 0:00:06]}  Kb2 {[%clk 0:00:44]} 47. Qd4+ {[%clk 0:00:07]}  Kb1 {[%clk 0:00:45]} 48. Qd1+ {[%clk 0:00:07]}  Kb2 {[%clk 0:00:45]} 49. Qd2+ {[%clk 0:00:07]}  Kb1 {[%clk 0:00:45]} 50. Ke2 {[%clk 0:00:04]}  a1=Q {[%clk 0:00:42]} 51. Kd3 {[%clk 0:00:05]}  Qb2 {[%clk 0:00:41]} 52. Qc3 {[%clk 0:00:03]}  Ka2 {[%clk 0:00:40]} 53. b4 {[%clk 0:00:03]}  Qb3 {[%clk 0:00:31]} 54. f3 {[%clk 0:00:02]}  Qd1+ {[%clk 0:00:28]} 55. Qd2+ {[%clk 0:00:02]}  Qxd2+ {[%clk 0:00:28]} 56. Kxd2 {[%clk 0:00:03]}  Kb3 {[%clk 0:00:28]} 57. Kd3 {[%clk 0:00:03]}  Kxb4 {[%clk 0:00:28]} 58. Kd4 {[%clk 0:00:03]}  Ka3 {[%clk 0:00:27]} 59. Ke5 {[%clk 0:00:03]}  b4 {[%clk 0:00:27]} 60. Kxe6 {[%clk 0:00:04]}  b3 {[%clk 0:00:28]} 61. Kxf5 {[%clk 0:00:05]}  b2 {[%clk 0:00:29]} 62. e4 {[%clk 0:00:06]}  b1=Q {[%clk 0:00:29]} 63. Kg5 {[%clk 0:00:07]}  Qg1+ {[%clk 0:00:28]} 64. Kf6 {[%clk 0:00:07]}  Qb6+ {[%clk 0:00:28]} 65. Kf5 {[%clk 0:00:07]}  Qc5+ {[%clk 0:00:26]} 66. e5 {[%clk 0:00:07]}  Qf8+ {[%clk 0:00:25]} 67. Ke4 {[%clk 0:00:06]}  Kb4 {[%clk 0:00:26]} 68. f5 {[%clk 0:00:05]}  Kc5 {[%clk 0:00:27]} 69. f4 {[%clk 0:00:06]}  Qa8+ {[%clk 0:00:26]} 70. Ke3 {[%clk 0:00:04]}  Kd5 {[%clk 0:00:26]} 0-1


[Site "https://www.chess.com"]

[Event "Titled Tuesday Blitz July 18 Early 2023"]
[White "Gutkin, Ilya"]
[Black "Erzhanov, Arman"]
[WhiteFideId "16203470"]
[BlackFideId "4138821"]
[WhiteElo "2357"]
[BlackElo "2485"]
[Result "0-1"]
[Round "8"]
[TimeControl "180+2"]
[Date "2023.07.18"]
[WhiteClock "0:00:11"]
[BlackClock "0:01:21"]
[Board "120"]

1. e4 {[%clk 0:03:00]}  d6 {[%clk 0:03:00]} 2. d4 {[%clk 0:03:00]}  Nf6 {[%clk 0:03:01]} 3. f3 {[%clk 0:03:00]}  d5 {[%clk 0:03:01]} 4. e5 {[%clk 0:03:00]}  Ng8 {[%clk 0:03:01]} 5. c4 {[%clk 0:02:59]}  dxc4 {[%clk 0:02:59]} 6. Bxc4 {[%clk 0:03:00]}  e6 {[%clk 0:02:56]} 7. Nc3 {[%clk 0:02:59]}  Nd7 {[%clk 0:02:57]} 8. Be3 {[%clk 0:02:56]}  Nxe5 {[%clk 0:02:56]} 9. dxe5 {[%clk 0:02:47]}  Qh4+ {[%clk 0:02:55]} 10. g3 {[%clk 0:02:41]}  Qxc4 {[%clk 0:02:56]} 11. Nge2 {[%clk 0:02:41]}  Bc5 {[%clk 0:02:56]} 12. b3 {[%clk 0:02:16]}  Qb4 {[%clk 0:02:54]} 13. a3 {[%clk 0:02:16]}  Qb6 {[%clk 0:02:48]} 14. Na4 {[%clk 0:02:13]}  Bxe3 {[%clk 0:02:44]} 15. Nxb6 {[%clk 0:02:13]}  Bxb6 {[%clk 0:02:45]} 16. a4 {[%clk 0:02:06]}  a5 {[%clk 0:02:43]} 17. Nc3 {[%clk 0:02:02]}  Ne7 {[%clk 0:02:42]} 18. Qe2 {[%clk 0:01:53]}  O-O {[%clk 0:02:40]} 19. O-O-O {[%clk 0:01:48]}  Nc6 {[%clk 0:02:35]} 20. Nb5 {[%clk 0:01:38]}  Nb4 {[%clk 0:02:32]} 21. f4 {[%clk 0:01:31]}  Nd5 {[%clk 0:02:29]} 22. Kb2 {[%clk 0:01:27]}  c6 {[%clk 0:02:27]} 23. Nd6 {[%clk 0:01:27]}  Bc5 {[%clk 0:02:18]} 24. Ne4 {[%clk 0:01:09]}  Bb4 {[%clk 0:02:17]} 25. Qf3 {[%clk 0:01:01]}  b5 {[%clk 0:02:15]} 26. Rc1 {[%clk 0:00:49]}  bxa4 {[%clk 0:02:14]} 27. bxa4 {[%clk 0:00:49]}  Rb8 {[%clk 0:02:14]} 28. Ka2 {[%clk 0:00:47]}  Ba6 {[%clk 0:02:04]} 29. h4 {[%clk 0:00:46]}  Rfd8 {[%clk 0:02:01]} 30. h5 {[%clk 0:00:45]}  Bd3 {[%clk 0:01:43]} 31. Qxd3 {[%clk 0:00:35]}  Be7 {[%clk 0:01:29]} 32. Qc4 {[%clk 0:00:26]}  Rb4 {[%clk 0:01:29]} 33. Qxb4 {[%clk 0:00:18]}  Nxb4+ {[%clk 0:01:29]} 34. Kb3 {[%clk 0:00:18]}  Rb8 {[%clk 0:01:23]} 35. Rxc6 {[%clk 0:00:17]}  Nxc6+ {[%clk 0:01:22]} 36. Kc4 {[%clk 0:00:16]}  Rb4+ {[%clk 0:01:22]} 37. Kd3 {[%clk 0:00:16]}  Rxa4 {[%clk 0:01:22]} 38. Rc1 {[%clk 0:00:15]}  Nb4+ {[%clk 0:01:19]} 39. Ke2 {[%clk 0:00:13]}  h6 {[%clk 0:01:20]} 40. Rc8+ {[%clk 0:00:13]}  Kh7 {[%clk 0:01:20]} 41. Rc7 {[%clk 0:00:13]}  Nd5 {[%clk 0:01:21]} 42. Rd7 {[%clk 0:00:11]}  Rxe4+ {[%clk 0:01:21]} 0-1


[Site "https://www.chess.com"]

[Event "Titled Tuesday Blitz July 18 Early 2023"]
[White "Martin Barcelo, Carles"]
[Black "Zaksaite, Salomeja"]
[WhiteFideId "24561444"]
[BlackFideId "12801496"]
[WhiteElo "2457"]
[BlackElo "2304"]
[Result "1-0"]
[Round "8"]
[TimeControl "180+2"]
[Date "2023.07.18"]
[WhiteClock "0:00:08"]
[BlackClock "0:00:04"]
[Board "123"]

1. e4 {[%clk 0:03:00]}  c5 {[%clk 0:02:56]} 2. Nc3 {[%clk 0:02:59]}  e6 {[%clk 0:02:55]} 3. d4 {[%clk 0:02:57]}  cxd4 {[%clk 0:02:55]} 4. Qxd4 {[%clk 0:02:58]}  Nc6 {[%clk 0:02:54]} 5. Qd3 {[%clk 0:02:59]}  a6 {[%clk 0:02:43]} 6. Bf4 {[%clk 0:02:56]}  Nge7 {[%clk 0:02:35]} 7. O-O-O {[%clk 0:02:55]}  Ng6 {[%clk 0:02:35]} 8. Bd6 {[%clk 0:02:55]}  Bxd6 {[%clk 0:02:31]} 9. Qxd6 {[%clk 0:02:56]}  Qg5+ {[%clk 0:02:29]} 10. Kb1 {[%clk 0:02:55]}  Qe5 {[%clk 0:02:29]} 11. Qd2 {[%clk 0:02:14]}  O-O {[%clk 0:02:25]} 12. Nf3 {[%clk 0:02:14]}  Qa5 {[%clk 0:02:23]} 13. h4 {[%clk 0:02:12]}  b5 {[%clk 0:02:14]} 14. h5 {[%clk 0:02:09]}  Nge5 {[%clk 0:02:14]} 15. Nxe5 {[%clk 0:01:59]}  Nxe5 {[%clk 0:02:10]} 16. h6 {[%clk 0:02:00]}  f6 {[%clk 0:00:44]} 17. hxg7 {[%clk 0:01:57]}  Rf7 {[%clk 0:00:38]} 18. Rxh7 {[%clk 0:01:10]}  Rxg7 {[%clk 0:00:19]} 19. Rxg7+ {[%clk 0:01:01]}  Kxg7 {[%clk 0:00:20]} 20. Bd3 {[%clk 0:00:48]}  Qd8 {[%clk 0:00:18]} 21. Rh1 {[%clk 0:00:47]}  Qg8 {[%clk 0:00:18]} 22. Rh3 {[%clk 0:00:32]}  Kf7 {[%clk 0:00:15]} 23. f4 {[%clk 0:00:20]}  Ng6 {[%clk 0:00:13]} 24. Rg3 {[%clk 0:00:17]}  Qh7 {[%clk 0:00:13]} 25. e5 {[%clk 0:00:16]}  f5 {[%clk 0:00:13]} 26. Nd5 {[%clk 0:00:16]}  exd5 {[%clk 0:00:12]} 27. Rh3 {[%clk 0:00:13]}  Qg7 {[%clk 0:00:12]} 28. Bxf5 {[%clk 0:00:14]}  d6 {[%clk 0:00:12]} 29. Qxd5+ {[%clk 0:00:13]}  Kf8 {[%clk 0:00:10]} 30. Qxd6+ {[%clk 0:00:13]}  Ne7 {[%clk 0:00:10]} 31. Bxc8 {[%clk 0:00:08]}  Rxc8 {[%clk 0:00:09]} 32. Rh6 {[%clk 0:00:09]}  Qxg2 {[%clk 0:00:06]} 33. Qf6+ {[%clk 0:00:08]}  Ke8 {[%clk 0:00:05]} 34. Rh8+ {[%clk 0:00:08]}  Kd7 {[%clk 0:00:04]} 35. Qd6# {[%clk 0:00:08]} 1-0


[Site "https://www.chess.com"]

[Event "Titled Tuesday Blitz July 18 Early 2023"]
[White "Namitbir Singh Walia"]
[Black "Joshi, Pankaj"]
[WhiteFideId "35071068"]
[BlackFideId "5006210"]
[WhiteElo "2447"]
[BlackElo "2285"]
[Result "1-0"]
[Round "8"]
[TimeControl "180+2"]
[Date "2023.07.18"]
[WhiteClock "0:00:12"]
[BlackClock "0:00:31"]
[Board "126"]

1. e4 {[%clk 0:02:13]}  c5 {[%clk 0:02:59]} 2. Nf3 {[%clk 0:02:13]}  d6 {[%clk 0:02:59]} 3. d4 {[%clk 0:02:13]}  cxd4 {[%clk 0:03:00]} 4. Nxd4 {[%clk 0:02:14]}  Nf6 {[%clk 0:03:01]} 5. f3 {[%clk 0:02:15]}  a6 {[%clk 0:02:57]} 6. c4 {[%clk 0:02:13]}  e6 {[%clk 0:02:57]} 7. Nc3 {[%clk 0:02:13]}  Be7 {[%clk 0:02:57]} 8. Be3 {[%clk 0:02:14]}  O-O {[%clk 0:02:57]} 9. Be2 {[%clk 0:02:15]}  Nbd7 {[%clk 0:02:58]} 10. O-O {[%clk 0:02:15]}  Qc7 {[%clk 0:02:58]} 11. Rc1 {[%clk 0:02:15]}  b6 {[%clk 0:02:58]} 12. b3 {[%clk 0:02:15]}  Bb7 {[%clk 0:02:58]} 13. Qd2 {[%clk 0:02:16]}  Rac8 {[%clk 0:02:57]} 14. Rfd1 {[%clk 0:02:16]}  Qb8 {[%clk 0:02:57]} 15. Kh1 {[%clk 0:02:15]}  Rfd8 {[%clk 0:02:55]} 16. Qe1 {[%clk 0:02:13]}  Bf8 {[%clk 0:02:44]} 17. Qf2 {[%clk 0:02:13]}  d5 {[%clk 0:02:25]} 18. exd5 {[%clk 0:02:12]}  exd5 {[%clk 0:02:26]} 19. cxd5 {[%clk 0:02:13]}  Nxd5 {[%clk 0:02:13]} 20. Nxd5 {[%clk 0:02:13]}  Bxd5 {[%clk 0:02:14]} 21. Bxa6 {[%clk 0:02:11]}  Rxc1 {[%clk 0:02:09]} 22. Rxc1 {[%clk 0:02:11]}  Qa8 {[%clk 0:02:06]} 23. Bc4 {[%clk 0:02:07]}  Nf6 {[%clk 0:01:54]} 24. Bg5 {[%clk 0:01:08]}  Bxc4 {[%clk 0:01:34]} 25. Bxf6 {[%clk 0:00:33]}  Bd3 {[%clk 0:01:33]} 26. Bxd8 {[%clk 0:00:33]}  Qxd8 {[%clk 0:01:29]} 27. Nc6 {[%clk 0:00:32]}  Qf6 {[%clk 0:01:25]} 28. Qxb6 {[%clk 0:00:23]}  Qb2 {[%clk 0:01:24]} 29. Rd1 {[%clk 0:00:16]}  Be2 {[%clk 0:01:03]} 30. Ne7+ {[%clk 0:00:12]}  Kh8 {[%clk 0:00:31]} 31. Qd8 {[%clk 0:00:12]} 1-0


[Site "https://www.chess.com"]